bitfinex/quotes_SOLUSD_20240604
["timestamp","ask_amount","ask_price","bid_price","bid_amount"]
[1717466054245,7.2111,166.58,166.55,6.3126]
[1717466054833,4.99,166.57,166.53,17.5825114]
[1717466056646,2.2212,166.58,166.53,17.5825114]
[1717466056835,4.99,166.57,166.53,17.5825114]
[1717466057175,4.99,166.57,166.53,17.58682172]
[1717466059764,4.99,166.57,166.54,2.2216]
[1717466059943,2.221,166.59,166.54,2.2216]
[1717466060129,4.99,166.57,166.54,8.5859]
[1717466060430,4.99,166.58,166.54,8.5859]
[1717466062470,4.4418,166.6,166.55,6.3857]
[1717466062655,7.2112,166.58,166.53,11.10232172]
[1717466062837,7.2112,166.58,166.53,17.48802172]
[1717466063257,2.2212,166.58,166.53,17.48802172]
[1717466063459,7.2112,166.58,166.54,2.2216]
[1717466064060,2.2212,166.58,166.54,2.2216]
[1717466064258,7.2112,166.58,166.54,2.2216]
[1717466065057,2.2212,166.58,166.54,2.2216]
[1717466065463,7.2112,166.58,166.54,2.2216]
[1717466066163,2.2212,166.58,166.54,2.2216]
[1717466066550,7.2112,166.58,166.54,2.2216]
[1717466067459,7.2112,166.58,166.54,11.10222172]
[1717466068880,7.2112,166.58,166.54,8.88062172]
[1717466069371,7.2112,166.58,166.54,11.10222172]
[1717466069686,7.2112,166.58,166.54,17.56032172]
[1717466069854,4.99,166.58,166.54,17.56032172]
[1717466070474,2.221,166.59,166.56,6.0242]
[1717466070651,7.2109,166.6,166.56,6.0242]
[1717466071465,15.5431,166.64,166.56,17.12612172]
[1717466071643,7.2108,166.61,166.56,17.12612172]
[1717466071846,7.2108,166.61,166.56,8.2455]
[1717466072472,2.2209,166.6,166.56,17.12612172]
[1717466072831,2.2209,166.6,166.56,17.1295158]
[1717466073754,7.2108,166.61,166.56,17.1295158]
[1717466073948,7.2108,166.61,166.57,2.2212]
[1717466074158,7.2108,166.61,166.57,8.734]
[1717466075154,7.2108,166.61,166.57,6.5128]
[1717466075675,4.99,166.6,166.57,6.5128]
[1717466076055,7.2108,166.6,166.57,6.5128]
[1717466080681,2.2208,166.6,166.57,6.5128]
[1717466080888,4.99,166.6,166.57,6.5128]
[1717466082251,7.2108,166.6,166.57,6.5128]
[1717466082693,9.21078802,166.67,166.56,135.1139158]
[1717466082907,2.2205,166.63,166.58,2.2211]
[1717466083212,2.2205,166.63,166.59,15.2817]
[1717466083383,2.2205,166.63,166.6,6.2299]
[1717466083704,7.2105,166.63,166.6,6.2299]
[1717466083911,2.2205,166.63,166.6,6.2299]
[1717466084399,2.2206,166.62,166.6,6.2299]
[1717466084590,2.2206,166.62,166.59,15.2817]
[1717466084591,2.2207,166.61,166.57,6.3348]
[1717466084894,4.99,166.58,166.56,8.8840158]
[1717466085096,4.99,166.57,166.55,8.8840158]
[1717466085388,4.99,166.56,166.54,2.2216]
[1717466085701,4.99,166.57,166.54,2.2216]
[1717466088401,4.99,166.57,166.54,11.11228814]
[1717466088691,4.99,166.57,166.54,2.2216]
[1717466088873,4.99,166.57,166.53,8.89068814]
[1717466089203,4.99,166.57,166.54,2.2216]
[1717466089619,2.2211,166.59,166.54,2.2216]
[1717466089778,4.99,166.57,166.54,2.2216]
[1717466090508,7.2114,166.57,166.53,15.36988814]
[1717466090722,4.99,166.57,166.53,15.36988814]
[1717466091407,4.99,166.57,166.53,17.59158814]
[1717466091911,4.99,166.57,166.54,11.11228814]
[1717466092515,4.99,166.57,166.53,17.59526124]
[1717466093403,4.99,166.57,166.54,2.2216]
[1717466094889,2.2211,166.58,166.54,2.2216]
[1717466094890,7.2111,166.58,166.54,2.2216]
[1717466095294,7.2111,166.58,166.54,11.11633057]
[1717466096317,7.2111,166.58,166.54,2.2216]
[1717466096491,7.2111,166.58,166.54,11.11555925]
[1717466097818,2.2213,166.57,166.53,8.89395925]
[1717466097992,7.2113,166.57,166.53,8.89395925]
[1717466098194,4.99,166.56,166.53,8.89395925]
[1717466098812,4.99,166.55,166.51,11.11595925]
[1717466099111,4.99,166.54,166.51,11.11595925]
[1717466100488,2.221,166.59,166.54,2.2216]
[1717466100712,2.2212,166.58,166.53,2.2217]
[1717466100889,7.2112,166.57,166.53,2.2217]
[1717466101088,4.99,166.56,166.52,131.11585925]
[1717466101485,4.99,166.56,166.52,122.2219]
[1717466102119,7.2114,166.56,166.51,2.222]
[1717466102411,4.99,166.55,166.51,2.222]
[1717466103124,4.99,166.55,166.5,156.36]
[1717466103294,4.99,166.55,166.52,2.2219]
[1717466104208,4.99,166.54,166.51,2.222]
[1717466105006,2.2214,166.56,166.51,2.222]
[1717466106514,2.2212,166.58,166.53,2.2218]
[1717466106911,4.99,166.55,166.52,2.2218]
[1717466107125,4.99,166.55,166.5,2.222]
[1717466107339,4.99,166.54,166.5,2.222]
[1717466107644,4.99,166.53,166.49,2.2222]
[1717466108119,4.99,166.53,166.5,2.2222]
[1717466108439,2.2216,166.55,166.5,2.2222]
[1717466110933,2.2216,166.55,166.51,2.222]
[1717466112132,2.2216,166.55,166.5,2.2221]
[1717466112842,2.2218,166.53,166.47,6.2589]
[1717466113016,4.99,166.52,166.48,2.3924]
[1717466113325,7.2121,166.51,166.46,158.2426]
[1717466113512,7.2121,166.51,166.46,122.2226]
[1717466113713,4.99,166.49,166.45,2.2228]
[1717466114239,4.99,166.49,166.46,2.2227]
[1717466114842,4.99,166.49,166.45,2.2228]
[1717466115314,7.2124,166.49,166.44,158.2529]
[1717466115631,7.2124,166.49,166.44,156.03]
[1717466115833,4.99,166.48,166.44,36.03]
[1717466116455,4.99,166.48,166.45,2.2228]
[1717466121746,4.99,166.47,166.44,2.223]
[1717466123045,4.99,166.47,166.45,2.2228]
[1717466125528,2.2222,166.5,166.45,2.2228]
[1717466125729,4.99,166.48,166.45,2.2228]
[1717466126157,2.2222,166.5,166.45,2.2228]
[1717466126329,4.99,166.48,166.45,2.2228]
[1717466128545,2.2222,166.5,166.45,2.2228]
[1717466128728,2.2219,166.53,166.48,2.2224]
[1717466128927,8.7475,166.55,166.48,2.2224]
[1717466128928,4.99,166.51,166.48,2.2224]
[1717466130125,4.99,166.51,166.47,2.2225]
[1717466130341,7.2119,166.52,166.47,2.2225]
[1717466130753,7.2121,166.51,166.47,2.2225]
[1717466131130,4.99,166.5,166.47,2.2225]
[1717466131327,4.99,166.5,166.46,2.3926]
[1717466132531,2.2218,166.53,166.48,2.2224]
[1717466132837,4.99,166.51,166.48,2.2224]
[1717466133244,2.2218,166.53,166.48,2.2224]
[1717466133245,4.99,166.52,166.48,2.2224]
[1717466133432,7.2119,166.52,166.47,2.2225]
[1717466133634,7.2121,166.51,166.46,120.17]
[1717466133857,4.99,166.51,166.47,2.2225]
[1717466134062,7.2121,166.51,166.46,2.3926]
[1717466134231,19.8551,166.55,166.45,2.2227]
[1717466134232,4.99,166.49,166.45,2.2227]
[1717466134565,4.99,166.48,166.44,2.2229]
[1717466134860,4.99,166.48,166.45,2.2228]
[1717466135865,4.99,166.48,166.44,2.2229]
[1717466137458,4.99,166.47,166.44,2.2229]
[1717466142955,4.99,166.47,166.45,2.2228]
[1717466144658,2.2223,166.49,166.44,2.2229]
[1717466144972,4.99,166.47,166.44,2.2229]
[1717466146658,4.99,166.47,166.45,2.2228]
[1717466152164,4.99,166.47,166.44,2.2229]
[1717466152367,4.99,166.47,166.45,2.2228]
[1717466153160,7.2126,166.47,166.42,156.03]
[1717466153463,4.99,166.47,166.44,2.2229]
[1717466155146,2.2224,166.49,166.44,2.2229]
[1717466155347,4.99,166.47,166.44,2.2229]
[1717466156163,2.2224,166.49,166.44,2.2229]
[1717466156476,4.99,166.47,166.45,1.20030887]
[1717466157063,4.99,166.47,166.44,2.2229]
[1717466158459,2.2224,166.49,166.44,2.2229]
[1717466158663,4.99,166.47,166.44,2.2229]
[1717466158884,2.2224,166.49,166.44,2.2229]
[1717466159049,4.99,166.47,166.44,2.2229]
[1717466159971,2.2222,166.5,166.45,2.2228]
[1717466160172,4.99,166.47,166.45,2.2228]
[1717466161047,4.99,166.47,166.44,2.2229]
[1717466161650,18.1689,166.55,166.41,0.34]
[1717466161651,4.99,166.46,166.41,0.34]
[1717466161852,4.99,166.45,166.42,2.2232]
[1717466162451,4.99,166.44,166.42,2.2232]
[1717466164051,2.2226,166.47,166.42,2.2232]
[1717466164781,2.2227,166.46,166.42,2.2232]
[1717466165081,2.2226,166.47,166.42,2.2232]
[1717466165783,2.2227,166.46,166.41,2.2233]
[1717466165972,4.4448,166.49,166.4,120.0]
[1717466165973,4.99,166.43,166.4,120.0]
[1717466166196,4.99,166.43,166.41,2.2233]
[1717466166495,4.99,166.43,166.4,120.0]
[1717466166496,4.99,166.43,166.4,122.2235]
[1717466166886,4.99,166.42,166.4,122.2235]
[1717466169469,4.99,166.42,166.4,2.2235]
[1717466170281,4.99,166.42,166.39,38.4236]
[1717466171389,4.99,166.42,166.39,2.3936]
[1717466171803,4.99,166.42,166.4,2.2235]
[1717466172485,2.2223,166.49,166.41,120.0]
[1717466172689,2.2225,166.48,166.44,2.2229]
[1717466173075,4.99,166.46,166.43,2.223]
[1717466173873,9.2942,166.5,166.43,2.223]
[1717466174079,4.99,166.45,166.43,2.223]
[1717466174882,4.99,166.45,166.41,120.0]
[1717466175085,4.99,166.44,166.41,2.2233]
[1717466175286,4.99,166.43,166.41,2.2233]
[1717466175687,4.99,166.43,166.42,2.2232]
[1717466177387,4.99,166.43,166.41,2.2233]
[1717466177891,4.99,166.43,166.41,2.2234]
[1717466178785,4.99,166.43,166.4,2.2234]
[1717466180984,4.99,166.42,166.4,2.2234]
[1717466184202,4.99,166.43,166.4,2.2234]
[1717466184496,4.99,166.49,166.46,2.2226]
[1717466184690,2.2221,166.51,166.47,2.2225]
[1717466184896,4.99,166.49,166.46,2.2226]
[1717466185084,4.99,166.49,166.47,2.2226]
[1717466185785,4.99,166.49,166.46,2.2226]
[1717466185989,2.2222,166.5,166.46,2.2226]
[1717466186195,4.99,166.49,166.46,2.2226]
[1717466186897,4.99,166.48,166.45,2.2228]
[1717466188797,4.99,166.48,166.46,2.2227]
[1717466189912,4.99,166.48,166.45,2.2228]
[1717466191287,4.99,166.46,166.44,2.2229]
[1717466191515,4.99,166.46,166.43,2.2231]
[1717466192089,4.99,166.46,166.44,2.223]
[1717466194803,4.99,166.48,166.45,2.2228]
[1717466195007,2.2223,166.49,166.45,2.2228]
[1717466195188,7.2123,166.49,166.45,2.2228]
[1717466197908,2.2223,166.49,166.45,2.2228]
[1717466198407,7.2125,166.48,166.44,2.2229]
[1717466198706,4.99,166.48,166.44,2.2229]
[1717466199119,4.99,166.48,166.45,2.2228]
[1717466201194,7.2124,166.49,166.45,2.2228]
[1717466202496,15.552,166.54,166.46,123.42175232]
[1717466202692,4.99,166.51,166.47,2.2226]
[1717466202903,4.99,166.51,166.47,8.596]
[1717466203123,7.2121,166.51,166.47,2.2226]
[1717466204425,4.99,166.51,166.47,2.2226]
[1717466204799,7.212,166.51,166.47,2.2226]
[1717466205726,7.212,166.51,166.47,8.3143]
[1717466206905,2.222,166.52,166.48,2.2224]
[1717466207225,7.212,166.52,166.47,8.3142]
[1717466207801,4.4434,166.54,166.47,8.3142]
[1717466207802,7.212,166.51,166.47,8.3142]
[1717466208903,4.99,166.5,166.47,8.3142]
[1717466210225,4.99,166.5,166.46,2.3927]
[1717466210432,7.212,166.51,166.46,2.2227]
[1717466210810,4.99,166.5,166.46,2.2227]
[1717466211726,4.99,166.5,166.47,2.2226]
[1717466212327,7.212,166.51,166.47,2.2226]
[1717466212824,4.99,166.5,166.46,2.2226]
[1717466214408,4.99,166.5,166.47,2.2226]
[1717466215233,2.222,166.51,166.47,2.2226]
[1717466215532,4.99,166.5,166.47,2.2226]
[1717466217722,2.222,166.51,166.47,2.2226]
[1717466217927,4.99,166.5,166.47,2.2226]
[1717466218129,4.99,166.51,166.47,2.2226]
[1717466218523,2.2219,166.52,166.48,2.2224]
[1717466218707,7.2119,166.52,166.48,2.2224]
[1717466221125,2.2219,166.52,166.48,2.2224]
[1717466221328,7.2119,166.52,166.48,2.2224]
[1717466221540,7.2119,166.52,166.47,2.2225]
[1717466221727,4.99,166.51,166.47,2.2225]
[1717466221914,4.99,166.51,166.47,8.3572]
[1717466223642,7.212,166.51,166.47,8.3572]
[1717466224344,7.2122,166.5,166.47,6.1347]
[1717466224553,7.2122,166.5,166.46,2.2226]
[1717466224938,4.99,166.5,166.47,2.2225]
[1717466225828,0.49616981,166.57,166.44,2.2229]
[1717466226032,7.2124,166.48,166.44,2.2229]
[1717466230147,4.99,166.48,166.45,2.2228]
[1717466231734,7.2125,166.48,166.44,2.2229]
[1717466232147,4.99,166.48,166.42,6.041]
[1717466232346,2.2227,166.47,166.4,4.447]
[1717466232550,2.2227,166.47,166.42,2.2231]
[1717466233250,4.99,166.46,166.43,2.2231]
[1717466233630,4.99,166.46,166.4,40.477]
[1717466233631,7.2125,166.48,166.44,2.223]
[1717466234055,2.2226,166.47,166.43,2.2231]
[1717466234735,7.2126,166.47,166.43,2.2231]
[1717466237048,2.2226,166.47,166.43,2.2231]
[1717466237242,7.2126,166.47,166.43,2.2231]
[1717466238749,13.3318,166.52,166.44,122.2229]
[1717466238937,7.2124,166.49,166.44,120.0]
[1717466239134,2.2225,166.48,166.44,122.2229]
[1717466240234,6.6659,166.52,166.44,126.4411]
[1717466240438,7.2124,166.49,166.45,2.2228]
[1717466240742,2.2226,166.47,166.43,7.383]
[1717466240942,7.2126,166.48,166.44,2.223]
[1717466241952,2.2226,166.47,166.44,2.223]
[1717466242655,2.2226,166.47,166.43,2.393]
[1717466243958,7.2126,166.47,166.43,2.393]
[1717466244254,7.2126,166.47,166.43,2.223]
[1717466247266,4.99,166.47,166.44,2.223]
[1717466248460,7.2126,166.47,166.43,2.223]
[1717466248964,7.2126,166.47,166.44,2.223]
[1717466250160,4.99,166.47,166.44,2.223]
[1717466250463,7.2126,166.47,166.44,2.223]
[1717466251465,4.99,166.47,166.44,2.223]
[1717466251965,2.2225,166.48,166.44,2.223]
[1717466252166,4.99,166.47,166.44,2.223]
[1717466252463,4.99,166.46,166.44,2.223]
[1717466253276,4.99,166.46,166.4,162.5482]
[1717466253563,4.99,166.46,166.43,2.223]
[1717466253771,4.99,166.46,166.44,2.223]
[1717466255447,4.99,166.47,166.44,2.223]
[1717466255765,4.99,166.47,166.45,2.2228]
[1717466256276,4.99,166.47,166.44,2.2229]
[1717466257647,2.2225,166.48,166.44,2.2229]
[1717466257859,4.99,166.47,166.44,2.2229]
[1717466260650,7.2126,166.47,166.43,2.223]
[1717466263469,4.99,166.47,166.43,2.223]
[1717466263966,4.99,166.46,166.42,2.2231]
[1717466264171,16.1013,166.5,166.42,2.2231]
[1717466264382,4.99,166.45,166.42,2.2231]
[1717466264550,2.2229,166.45,166.4,2.2234]
[1717466264752,4.99,166.43,166.4,2.2234]
[1717466265056,4.99,166.44,166.41,2.2234]
[1717466269571,4.99,166.44,166.38,160.4775]
[1717466269572,4.99,166.44,166.38,156.03]
[1717466269880,4.99,166.43,166.4,2.2235]
[1717466272376,4.99,166.43,166.39,2.2236]
[1717466276588,2.223,166.44,166.39,2.2236]
[1717466276793,7.213,166.44,166.39,2.2236]
[1717466279590,2.223,166.44,166.39,2.2236]
[1717466279775,7.213,166.44,166.39,2.2236]
[1717466280393,2.223,166.44,166.39,2.2236]
[1717466280572,7.213,166.44,166.39,2.2236]
[1717466281633,2.223,166.44,166.4,2.2235]
[1717466283310,2.2229,166.45,166.4,2.2235]
[1717466283465,2.2229,166.45,166.4,122.2235]
[1717466283665,2.223,166.44,166.4,122.2235]
[1717466285408,2.2229,166.45,166.41,2.2233]
[1717466286511,2.223,166.44,166.4,122.2234]
[1717466286720,2.223,166.44,166.41,0.17]
[1717466289095,8.8887,166.51,166.42,156.03]
[1717466289302,4.99,166.5,166.44,120.0]
[1717466289616,4.99,166.5,166.45,2.2228]
[1717466289919,4.99,166.5,166.45,2.3928]
[1717466290086,13.8647,166.56,166.48,2.2224]
[1717466290087,2.222,166.52,166.48,2.2224]
[1717466290290,4.4431,166.55,166.47,120.0]
[1717466290291,4.99,166.53,166.47,120.0]
[1717466290493,2.2221,166.51,166.48,0.17]
[1717466292410,2.2222,166.5,166.48,0.17]
[1717466292825,2.2222,166.5,166.47,0.17]
[1717466295817,2.2222,166.5,166.46,2.2226]
[1717466296007,2.2224,166.49,166.45,128.4471]
[1717466296318,7.2124,166.49,166.45,2.2228]
[1717466296493,2.71806981,166.53,166.49,2.2222]
[1717466296699,2.222,166.52,166.48,2.2224]
[1717466297017,4.4433,166.54,166.47,2.2225]
[1717466297198,2.2217,166.54,166.46,131.1134]
[1717466297401,4.99,166.52,166.47,2.2225]
[1717466298000,2.222,166.51,166.47,2.2225]
[1717466298205,2.222,166.51,166.46,122.2226]
[1717466298432,4.3042,166.55,166.48,120.0]
[1717466298724,4.99,166.53,166.48,120.0]
[1717466299402,7.2119,166.53,166.48,120.0]
[1717466299620,2.222,166.52,166.48,120.0]
[1717466300614,2.2221,166.51,166.46,120.0]
[1717466300822,4.99,166.51,166.46,120.0]
[1717466301015,2.2222,166.5,166.46,120.0]
[1717466301642,2.2222,166.5,166.45,38.4228]
[1717466301818,2.2222,166.5,166.46,0.17]
[1717466302302,7.2122,166.5,166.46,0.17]
[1717466302711,4.99,166.5,166.46,2.3927]
[1717466303898,7.2122,166.5,166.46,0.17]
[1717466304212,7.2122,166.5,166.45,2.5628]
[1717466304419,7.2122,166.5,166.45,2.3928]
[1717466306225,4.99,166.49,166.45,2.3928]
[1717466306725,7.2122,166.5,166.45,2.3928]
[1717466307313,7.2122,166.5,166.46,2.2227]
[1717466308027,7.2122,166.5,166.45,0.17]
[1717466308028,2.2222,166.5,166.45,2.2228]
[1717466308529,4.99,166.49,166.45,2.2228]
[1717466309322,7.2123,166.49,166.45,2.2228]
[1717466309631,2.2222,166.5,166.45,2.2228]
[1717466309831,4.99,166.49,166.45,2.2228]
[1717466310033,2.2222,166.5,166.45,2.2228]
[1717466310213,4.99,166.49,166.46,2.2227]
[1717466310717,4.99,166.49,166.45,2.2228]
[1717466311123,7.2123,166.49,166.45,2.2228]
[1717466311326,4.99,166.49,166.45,2.2228]
[1717466313935,4.99,166.49,166.46,2.2227]
[1717466314437,4.99,166.49,166.45,2.2228]
[1717466316335,4.99,166.49,166.42,178.6134]
[1717466316531,4.99,166.46,166.4,156.03]
[1717466316711,7.2128,166.46,166.4,156.03]
[1717466317124,2.2228,166.46,166.42,2.2232]
[1717466317326,4.99,166.45,166.42,2.2232]
[1717466317835,7.2128,166.46,166.42,2.2232]
[1717466318214,4.99,166.46,166.42,2.2232]
[1717466318926,4.99,166.46,166.43,2.2231]
[1717466321738,4.99,166.47,166.44,2.2229]
[1717466322939,7.2126,166.47,166.43,2.223]
[1717466323446,2.2226,166.47,166.43,2.223]
[1717466323630,7.2126,166.47,166.43,2.223]
[1717466324737,4.4452,166.47,166.4,156.03]
[1717466324940,4.99,166.45,166.42,2.2232]
[1717466325138,7.2128,166.46,166.42,2.2232]
[1717466325853,2.2228,166.46,166.42,2.2232]
[1717466326152,7.2128,166.46,166.42,2.2232]
[1717466326934,4.99,166.46,166.42,2.2232]
[1717466329432,7.2127,166.46,166.42,2.2232]
[1717466330423,2.2227,166.46,166.42,2.2232]
[1717466330627,4.99,166.46,166.42,2.2232]
[1717466330933,7.2126,166.47,166.43,2.2231]
[1717466331557,4.4423,166.58,166.48,124.4448]
[1717466331856,7.2116,166.55,166.5,2.2221]
[1717466332081,7.2114,166.56,166.51,2.222]
[1717466332426,2.2216,166.55,166.51,2.222]
[1717466333848,2.2212,166.57,166.51,2.2219]
[1717466334026,7.2112,166.57,166.51,2.2219]
[1717466334226,7.2113,166.57,166.52,2.2219]
[1717466334961,7.2114,166.56,166.51,2.222]
[1717466335829,4.99,166.56,166.52,2.2219]
[1717466336135,7.2113,166.57,166.52,2.2219]
[1717466337544,7.2114,166.56,166.51,2.222]
[1717466337734,4.99,166.55,166.51,2.222]
[1717466337940,7.2115,166.55,166.5,2.2222]
[1717466338135,4.99,166.54,166.5,2.2222]
[1717466338645,2.2215,166.55,166.5,2.2222]
[1717466339571,6.5257,166.55,166.5,2.2221]
[1717466340440,2.2217,166.54,166.47,40.645]
[1717466340762,4.3042,166.55,166.51,2.222]
[1717466340933,6.5258,166.55,166.51,2.222]
[1717466342069,2.2214,166.56,166.51,2.222]
[1717466342232,7.2114,166.56,166.51,2.222]
[1717466342660,4.99,166.55,166.51,2.222]
[1717466343041,7.2114,166.56,166.51,2.222]
[1717466343357,7.2114,166.56,166.52,2.2219]
[1717466343863,2.2214,166.56,166.52,2.2219]
[1717466344161,7.2114,166.56,166.51,2.222]
[1717466345651,2.2214,166.56,166.51,2.222]
[1717466345857,7.2114,166.56,166.51,2.222]
[1717466346930,2.2212,166.58,166.5,124.99]
[1717466347136,2.2212,166.58,166.53,2.2217]
[1717466347354,7.2112,166.58,166.53,2.2217]
[1717466347560,7.2112,166.58,166.51,5.16]
[1717466347877,2.2212,166.58,166.53,2.2217]
[1717466348038,2.2213,166.57,166.53,2.2217]
[1717466348543,2.2213,166.57,166.52,2.2218]
[1717466350445,2.2214,166.56,166.52,2.2218]
[1717466351558,2.2215,166.55,166.51,5.16]
[1717466351760,2.2214,166.56,166.51,2.392]
[1717466354359,2.2214,166.56,166.52,2.2219]
[1717466359175,2.2213,166.57,166.52,2.2219]
[1717466359465,8.7452,166.63,166.53,120.0]
[1717466359667,4.99,166.6,166.53,129.4334]
[1717466359862,7.2109,166.6,166.55,2.2214]
[1717466360057,4.99,166.59,166.55,2.2214]
[1717466360257,4.4412,166.62,166.56,2.2214]
[1717466360454,4.99,166.59,166.55,2.2214]
[1717466361347,7.2109,166.6,166.55,2.2214]
[1717466361747,2.2208,166.61,166.56,2.2214]
[1717466361948,2.2208,166.6,166.56,2.2214]
[1717466362163,7.2108,166.6,166.56,2.2214]
[1717466362648,4.99,166.59,166.56,2.2214]
[1717466363342,7.211,166.59,166.55,2.2215]
[1717466363742,4.99,166.57,166.54,2.2216]
[1717466363946,7.2112,166.58,166.54,2.2216]
[1717466364168,2.221,166.59,166.54,8.2965]
[1717466364361,7.211,166.59,166.55,2.2215]
[1717466366854,2.221,166.59,166.55,2.2215]
[1717466367162,7.211,166.59,166.55,2.2215]
[1717466372787,7.211,166.59,166.53,2.2218]
[1717466372788,2.2213,166.57,166.53,2.2218]
[1717466372972,4.99,166.56,166.52,2.2218]
[1717466373275,4.99,166.55,166.5,6.4039]
[1717466373476,2.2216,166.54,166.5,2.2221]
[1717466373684,4.99,166.53,166.5,2.2221]
[1717466374662,4.99,166.53,166.51,2.222]
[1717466376469,4.99,166.54,166.51,2.222]
[1717466377487,4.99,166.54,166.52,2.2219]
[1717466377884,2.2214,166.56,166.52,2.2219]
[1717466378190,4.99,166.56,166.53,2.2218]
[1717466379581,7.2114,166.56,166.52,2.2218]
[1717466379787,2.2213,166.57,166.52,2.2218]
[1717466379981,4.99,166.56,166.52,2.2218]
[1717466380184,7.2114,166.56,166.52,2.2218]
[1717466380476,2.2213,166.57,166.53,2.2218]
[1717466380683,7.2113,166.57,166.53,2.2218]
[1717466381182,2.2213,166.57,166.53,2.2218]
[1717466381690,7.2113,166.57,166.53,2.2218]
[1717466392785,7.2114,166.56,166.52,2.2218]
[1717466392985,4.99,166.56,166.53,2.2218]
[1717466396216,2.2212,166.58,166.54,2.2216]
[1717466396431,4.99,166.56,166.53,2.2217]
[1717466401724,4.99,166.55,166.51,2.222]
[1717466401904,2.2216,166.55,166.51,2.222]
[1717466402221,2.2213,166.57,166.53,2.2218]
[1717466403116,4.99,166.55,166.53,2.2218]
[1717466403311,4.99,166.56,166.53,2.2218]
[1717466403512,2.2213,166.57,166.53,2.2218]
[1717466403713,4.99,166.56,166.53,2.2218]
[1717466404013,2.2211,166.59,166.54,2.2215]
[1717466404204,4.99,166.56,166.53,2.2217]
[1717466405728,4.99,166.55,166.53,2.2217]
[1717466405898,2.2214,166.56,166.49,11.1116]
[1717466406112,4.99,166.54,166.52,2.2219]
[1717466406404,2.2214,166.56,166.52,2.2219]
[1717466406606,2.2213,166.57,166.52,2.2219]
[1717466407116,4.99,166.55,166.52,2.2219]
[1717466407320,4.99,166.55,166.5,0.17]
[1717466407321,4.99,166.53,166.45,52.4941]
[1717466407521,4.99,166.51,166.48,2.2224]
[1717466408025,4.99,166.51,166.5,2.2222]
[1717466408401,2.2218,166.53,166.5,2.2222]
[1717466408608,4.99,166.52,166.5,2.2222]
[1717466409106,2.2217,166.54,166.5,2.2222]
[1717466409312,2.2217,166.54,166.51,2.222]
[1717466409313,4.99,166.53,166.51,2.222]
[1717466410048,4.99,166.54,166.51,2.222]
[1717466410629,2.2216,166.55,166.51,2.222]
[1717466411009,4.99,166.54,166.51,2.222]
[1717466411530,7.2117,166.54,166.48,130.5819]
[1717466411938,4.99,166.54,166.51,2.222]
[1717466412310,4.99,166.54,166.52,0.34894065]
[1717466413536,7.2117,166.54,166.52,0.34894065]
[1717466413835,7.2117,166.54,166.51,0.34894065]
[1717466414833,7.2117,166.54,166.51,0.48475815]
[1717466415043,7.2117,166.54,166.51,1.68392159]
[1717466415222,7.2118,166.53,166.5,11.10759021]